bitfinex/quotes_ETHUSD_20250827
["timestamp","ask_amount","ask_price","bid_price","bid_amount"]
[1756270246850,2.15419211,4642.2,4641.9,3.657]
[1756270247147,2.26203045,4642.5,4641.9,3.657]
[1756270247148,0.108,4642.5,4642.1,0.2855]
[1756270247447,0.17830602,4642.6,4642.2,0.4613]
[1756270247613,0.17830602,4642.6,4642.3,3.657]
[1756270247942,0.25602668,4642.5,4642.3,3.657]
[1756270248517,0.17830602,4642.6,4642.3,3.657]
[1756270248758,2.33229163,4642.6,4642.3,3.657]
[1756270249061,2.15401462,4642.5,4642.3,3.657]
[1756270249266,0.099,4642.4,4642.3,3.657]
[1756270249417,2.50698225,4642.4,4642.3,3.657]
[1756270249616,2.95718225,4642.4,4642.3,3.657]
[1756270249879,2.61498225,4642.4,4642.3,3.657]
[1756270252019,3.06518225,4642.4,4642.3,3.657]
[1756270252217,0.46092401,4642.4,4642.0,5.313]
[1756270252417,2.15419745,4642.1,4642.0,3.656]
[1756270252751,2.15456876,4641.3,4641.2,1.656]
[1756270252924,2.26256876,4641.3,4641.2,1.656]
[1756270253325,2.26256876,4641.3,4641.2,5.312]
[1756270254427,2.55636876,4641.3,4641.2,5.312]
[1756270255022,2.81200564,4641.3,4641.2,5.312]
[1756270255852,2.81200564,4641.3,4641.2,3.656]
[1756270256635,2.15468227,4641.1,4640.8,3.655]
[1756270256864,2.55615446,4640.9,4640.8,3.655]
[1756270257235,2.55615446,4640.9,4640.8,0.001]
[1756270257431,3.02723813,4640.9,4640.8,0.001]
[1756270257698,6.28493813,4640.9,4640.8,0.001]
[1756270258566,6.02723813,4640.9,4640.8,0.001]
[1756270259674,2.15474672,4641.0,4640.8,0.7411]
[1756270259847,0.25563688,4641.3,4640.8,0.3098]
[1756270260042,2.15475446,4640.9,4640.8,0.001]
[1756270260250,2.48557321,4640.9,4640.8,0.001]
[1756270260449,2.46922991,4640.9,4640.8,0.001]
[1756270260766,2.37022991,4640.9,4640.8,0.001]
[1756270261159,2.47272991,4640.9,4640.8,0.001]
[1756270261538,2.48907321,4640.9,4640.8,0.001]
[1756270261760,2.47272991,4640.9,4640.8,0.001]
[1756270262072,5.91952991,4640.9,4640.8,0.001]
[1756270262244,5.47272991,4640.9,4640.8,0.001]
[1756270263369,5.91952991,4640.9,4640.8,0.001]
[1756270263559,5.47272991,4640.9,4640.8,0.001]
[1756270265771,2.37022991,4640.9,4640.8,0.001]
[1756270265968,2.15475446,4640.9,4640.8,0.7411]
[1756270266137,9.23475446,4640.9,4640.8,0.7411]
[1756270266473,9.33375446,4640.9,4640.8,0.001]
[1756270266844,12.33375446,4640.9,4640.8,0.001]
[1756270267040,13.16427202,4640.9,4640.8,0.001]
[1756270267265,10.06527202,4640.9,4640.8,0.7411]
[1756270267469,9.23475446,4640.9,4640.8,0.001]
[1756270267879,9.23475446,4640.9,4640.8,0.021]
[1756270268179,9.33375446,4640.9,4640.8,0.021]
[1756270268741,9.23475446,4640.9,4640.8,0.021]
[1756270269161,9.33375446,4640.9,4640.8,0.021]
[1756270269654,12.44175446,4640.9,4640.8,0.021]
[1756270271984,13.55195446,4640.9,4640.8,0.021]
[1756270272167,2.15498663,4640.4,4640.3,0.001]
[1756270272494,5.82432993,4640.4,4640.3,0.001]
[1756270272680,8.91048663,4640.4,4640.3,0.001]
[1756270272890,5.36548663,4640.4,4640.3,0.001]
[1756270273088,9.77052654,4640.4,4640.3,0.001]
[1756270274880,9.76852654,4640.4,4640.3,0.001]
[1756270275081,9.76852654,4640.4,4640.3,1e-08]
[1756270275082,17.95532654,4640.4,4640.3,1e-08]
[1756270275798,17.96032654,4640.4,4640.3,1e-08]
[1756270276005,14.30432654,4640.4,4640.3,1e-08]
[1756270276864,17.95932654,4640.4,4640.3,1e-08]
[1756270278380,13.19752654,4640.4,4640.3,1e-08]
[1756270278598,16.85152654,4640.4,4640.3,1e-08]
[1756270279169,17.29832654,4640.4,4640.3,1e-08]
[1756270279773,16.85152654,4640.4,4640.3,1e-08]
[1756270280672,17.51152654,4640.4,4640.3,1e-08]
[1756270281000,13.85752654,4640.4,4640.3,1e-08]
[1756270281206,17.95932654,4640.4,4640.3,1e-08]
[1756270281370,24.05324317,4640.4,4640.3,1e-08]
[1756270281578,13.09502654,4640.4,4640.3,1e-08]
[1756270281892,16.75002654,4640.4,4640.3,1e-08]
[1756270282091,16.75002654,4640.4,4640.3,0.74010001]
[1756270282287,13.09502654,4640.4,4640.3,0.74010001]
[1756270282881,2.26298663,4640.4,4640.3,0.74010001]
[1756270284618,2.26498663,4640.4,4640.3,0.74010001]
[1756270287318,0.11,4640.4,4640.3,0.74010001]
[1756270287812,2.26498663,4640.4,4640.3,0.74010001]
[1756270288017,0.002,4640.4,4640.3,2.39710001]
[1756270289017,0.002,4640.4,4640.3,4.80274308]
[1756270289404,0.002,4640.4,4640.3,2.64771001]
[1756270290245,0.002,4640.4,4640.3,2.39710001]
[1756270290927,2.15698663,4640.4,4640.3,1.96580001]
[1756270291125,2.26498663,4640.4,4640.3,1.65700001]
[1756270292099,2.81991072,4640.4,4640.3,1e-08]
[1756270292299,5.81991072,4640.4,4640.3,1e-08]
[1756270292513,6.25791072,4640.4,4640.3,1e-08]
[1756270292711,9.91591072,4640.4,4640.3,1e-08]
[1756270294509,6.25791072,4640.4,4640.3,1e-08]
[1756270294725,9.91691072,4640.4,4640.3,1e-08]
[1756270295734,16.99691072,4640.4,4640.3,1e-08]
[1756270296135,17.65691072,4640.4,4640.3,1e-08]
[1756270296738,13.55991072,4640.4,4640.3,1e-08]
[1756270297035,17.21691072,4640.4,4640.3,1e-08]
[1756270297713,17.65491072,4640.4,4640.3,1e-08]
[1756270299042,2.15521886,4639.9,4639.3,0.001]
[1756270299346,9.48756216,4639.9,4639.3,0.001]
[1756270299546,9.58581886,4639.9,4639.3,0.001]
[1756270299704,9.69381886,4639.9,4639.3,0.001]
[1756270299905,9.57921886,4639.9,4639.4,0.4486]
[1756270300127,10.02184295,4639.9,4639.4,0.4486]
[1756270300640,5.70684295,4639.9,4639.4,0.4486]
[1756270300831,5.70684295,4639.9,4639.8,0.7816]
[1756270304710,12.78684295,4639.9,4639.8,0.7816]
[1756270305449,9.34321886,4639.9,4639.8,0.7816]
[1756270306017,7.188,4639.9,4639.8,0.7816]
[1756270306218,0.002,4640.4,4639.8,0.7816]
[1756270306460,0.108,4640.3,4639.9,0.4486]
[1756270306666,0.108,4640.3,4640.2,0.312]
[1756270307020,2.26303307,4640.3,4640.2,0.7606]
[1756270307220,0.108,4640.3,4640.2,0.7606]
[1756270307633,2.26303307,4640.3,4640.2,0.7606]
[1756270307843,2.15503307,4640.3,4640.2,0.7606]
[1756270308940,0.002,4640.4,4640.2,0.7606]
[1756270309144,0.002,4640.4,4640.3,0.4486]
[1756270309333,0.002,4640.4,4640.3,2.91676025]
[1756270309640,0.002,4640.4,4640.3,3.22876025]
[1756270309844,0.002,4640.4,4640.3,3.20720992]
[1756270312352,0.002,4640.4,4640.3,6.86020992]
[1756270315860,0.002,4640.4,4640.3,7.02471783]
[1756270316943,0.002,4640.4,4640.3,4.86968476]
[1756270317247,0.002,4640.4,4640.3,7.02471783]
[1756270317443,0.002,4640.4,4640.3,4.70517685]
[1756270317623,0.002,4640.4,4640.3,4.4136]
[1756270317823,0.002,4640.4,4640.3,4.5216]
[1756270318561,0.002,4640.4,4640.3,6.67663307]
[1756270318923,0.002,4640.4,4640.3,6.84235476]
[1756270319765,0.002,4640.4,4640.3,6.95035476]
[1756270319937,0.002,4640.4,4640.3,7.860901]
[1756270320637,0.002,4640.4,4640.3,10.860901]
[1756270323240,0.002,4640.4,4640.3,0.216]
[1756270323557,0.1129,4640.4,4640.1,0.108]
[1756270323866,2.26789011,4640.4,4640.2,3.651]
[1756270324775,0.1129,4640.4,4640.2,3.651]
[1756270325174,0.002,4640.4,4640.2,3.651]
[1756270325374,0.002,4640.4,4640.3,0.7584]
[1756270325549,0.002,4640.4,4640.3,0.8664]
[1756270325748,0.002,4640.4,4640.3,0.412]
[1756270326441,0.002,4640.4,4640.3,0.108]
[1756270326644,0.1129,4640.4,4640.2,3.651]
[1756270327951,0.002,4640.4,4640.3,0.304]
[1756270328145,0.002,4640.4,4640.3,0.8664]
[1756270328979,0.1129,4640.4,4640.3,0.108]
[1756270329861,0.1129,4640.4,4640.2,3.651]
[1756270329862,2.15503307,4640.3,4640.2,3.651]
[1756270330174,2.88271639,4640.3,4640.2,3.651]
[1756270332158,3.14841639,4640.3,4640.2,3.651]
[1756270332376,2.88271639,4640.3,4640.2,3.651]
[1756270332585,2.99071639,4640.3,4640.2,3.651]
[1756270333288,3.25641639,4640.3,4640.2,3.651]
[1756270333650,3.25641639,4640.3,4639.9,3.651]
[1756270333651,2.15517241,4640.0,4639.9,3.651]
[1756270334168,2.44037241,4640.0,4639.9,3.651]
[1756270334376,2.54837241,4640.0,4639.9,3.651]
[1756270334675,2.69633679,4640.0,4639.9,3.955]
[1756270334881,2.15517241,4640.0,4639.9,3.955]
[1756270335080,2.15517241,4640.0,4639.9,3.651]
[1756270335582,2.26310214,4640.2,4639.9,4.4094]
[1756270335889,0.002,4640.4,4640.1,0.001]
[1756270336053,0.002,4640.4,4640.3,0.304]
[1756270336251,0.002,4640.4,4640.3,0.7584]
[1756270336458,0.002,4640.4,4640.3,0.88795033]
[1756270337756,0.002,4640.4,4640.3,0.8664]
[1756270338085,0.002,4640.4,4640.3,0.88795033]
[1756270339266,0.002,4640.4,4640.3,0.8664]
[1756270339750,0.002,4640.4,4640.3,0.88795033]
[1756270340256,0.002,4640.4,4640.3,3.0429834]
[1756270340481,0.002,4640.4,4640.3,3.90644781]
[1756270341786,0.002,4640.4,4640.3,0.8664]
[1756270342167,0.002,4640.4,4640.3,0.88795033]
[1756270342367,0.002,4640.4,4640.3,3.0429834]
[1756270343668,0.002,4640.4,4640.3,3.02143307]
[1756270344483,0.002,4640.4,4640.3,0.412]
[1756270344689,0.002,4640.4,4640.3,4.063]
[1756270345700,0.1129,4640.4,4640.3,0.108]
[1756270345995,0.1129,4640.4,4640.3,3.759]
[1756270346612,0.1129,4640.4,4640.3,3.651]
[1756270346613,2.26789445,4640.4,4640.3,3.651]
[1756270346900,0.1129,4640.4,4640.3,3.651]
[1756270347298,2.26788663,4640.4,4640.3,3.651]
[1756270347477,2.75401089,4640.4,4640.3,3.651]
[1756270349810,0.59902426,4640.4,4640.3,3.651]
[1756270350016,2.75401089,4640.4,4640.3,3.651]
[1756270350726,3.19251089,4640.4,4640.3,3.651]
[1756270351073,2.75401089,4640.4,4640.3,3.651]
[1756270351410,3.19251089,4640.4,4640.3,3.651]
[1756270351772,2.75401089,4640.4,4640.3,3.651]
[1756270351975,2.86201089,4640.4,4640.3,3.651]
[1756270352194,0.002,4640.4,4640.3,3.651]
[1756270353306,0.002,4640.4,4640.3,4.3972]
[1756270353506,0.002,4640.4,4640.3,4.5052]
[1756270354626,0.002,4640.4,4640.3,6.66023307]
[1756270359024,2.15507952,4640.2,4640.1,0.001]
[1756270359226,0.55862795,4640.2,4640.1,0.001]
[1756270359628,2.71370747,4640.2,4640.1,0.001]
[1756270361938,2.97680747,4640.2,4640.1,0.001]
[1756270364202,2.71370747,4640.2,4640.1,0.001]
[1756270365206,0.55862795,4640.2,4640.1,0.001]
[1756270365406,0.288,4640.2,4640.1,0.001]
[1756270365638,2.44307952,4640.2,4640.1,0.001]
[1756270366414,0.288,4640.2,4640.1,0.001]
[1756270366739,0.002,4640.4,4640.1,0.3143]
[1756270367036,0.002,4640.4,4640.2,0.4329]
[1756270367413,0.002,4640.4,4640.3,2.90123307]
[1756270368916,0.002,4640.4,4640.3,3.00923307]
[1756270370167,0.002,4640.4,4640.3,0.8542]
[1756270370555,0.002,4640.4,4640.3,0.4213]
[1756270370758,0.002,4640.4,4640.3,0.8542]
[1756270372463,0.002,4640.4,4640.3,0.4213]
[1756270373060,0.002,4640.4,4640.3,0.8542]
[1756270373577,0.002,4640.4,4640.3,0.108]
[1756270373781,0.29,4640.4,4640.3,0.108]
[1756270373978,0.29,4640.4,4640.3,3.651]
[1756270377163,0.002,4640.4,4640.3,3.651]
[1756270377463,0.002,4640.4,4640.3,4.8021]
[1756270377769,0.002,4640.4,4640.3,6.95713307]
[1756270380269,0.002,4640.4,4640.3,0.3061]
[1756270380473,0.1133,4640.4,4640.3,3.651]
[1756270384461,0.002,4640.4,4640.3,3.651]
[1756270385390,0.002,4640.4,4640.3,3.9571]
[1756270385900,0.1133,4640.4,4640.3,3.651]
[1756270387378,2.94401095,4640.4,4640.3,3.651]
[1756270387581,2.94401095,4640.4,4640.1,0.001]
[1756270387582,2.15507952,4640.2,4640.1,0.001]
[1756270387969,2.81237952,4640.2,4640.1,0.001]
[1756270389581,2.81437952,4640.2,4640.1,0.001]
[1756270390084,2.83072282,4640.2,4640.1,0.001]
[1756270390276,3.31315047,4640.2,4640.1,0.001]
[1756270390786,12.40512939,4640.2,4640.1,0.001]
[1756270395091,15.62132939,4640.2,4640.1,0.001]
[1756270395297,16.05612939,4640.2,4640.1,0.001]
[1756270396073,15.62132939,4640.2,4640.1,0.001]
[1756270396280,12.84385047,4640.2,4640.1,0.3071]
[1756270396903,12.84385047,4640.2,4640.1,0.7761]
[1756270399320,7.19,4640.2,4640.1,0.7761]
[1756270399480,7.19,4640.2,4640.1,0.8841]
[1756270399481,7.082,4640.2,4640.1,0.8841]
[1756270399814,7.082,4640.2,4640.1,0.7761]
[1756270401269,0.002,4640.2,4640.1,0.7761]
[1756270401474,0.002,4640.2,4640.1,1.35818488]
[1756270404290,0.002,4640.2,4640.1,0.7761]
[1756270405392,2.45947952,4640.2,4640.1,0.001]
[1756270406393,0.3044,4640.2,4640.1,0.001]
[1756270406799,2.45947952,4640.2,4640.1,0.001]
[1756270407966,0.3044,4640.2,4640.1,0.001]
[1756270408135,2.15707952,4640.2,4640.1,0.2955]
[1756270408430,2.15707952,4640.2,4640.1,0.001]
[1756270408727,2.38378747,4640.2,4640.1,0.001]
[1756270409781,2.69088747,4640.2,4640.1,0.001]
[1756270410080,2.93508747,4640.2,4640.1,0.001]
[1756270410500,5.95143077,4640.2,4640.1,0.001]
[1756270410834,5.93508747,4640.2,4640.1,0.001]
[1756270412228,6.59508747,4640.2,4640.1,0.001]
[1756270413739,0.66,4640.0,4639.8,0.021]
[1756270414035,5.15512596,4640.1,4639.8,0.021]
[1756270414036,15.68154108,4639.9,4639.8,0.021]
[1756270414208,16.21649778,4639.9,4639.8,0.021]
[1756270414699,8.91321886,4639.9,4639.8,0.021]
[1756270414901,5.26321886,4639.9,4639.8,0.021]
[1756270415133,5.48992681,4639.9,4639.8,0.3155]
[1756270415340,0.002,4640.2,4639.8,0.3155]
[1756270415341,0.002,4640.2,4639.8,0.7899]
[1756270415835,0.002,4640.2,4639.9,0.4744]
[1756270416347,0.002,4640.2,4640.1,0.2945]
[1756270416860,2.15707952,4640.2,4640.1,0.7689]
[1756270418612,5.15512596,4640.1,4639.8,0.021]
[1756270419421,2.15521886,4639.9,4639.8,0.021]
[1756270421214,2.25771886,4639.9,4639.8,0.021]
[1756270424527,2.15521886,4639.9,4639.8,0.7899]
[1756270425140,2.15517969,4640.0,4639.8,0.7899]
[1756270425341,0.002,4640.2,4639.9,0.4744]
[1756270425559,0.002,4640.2,4640.1,0.2945]
[1756270425935,2.15707952,4640.2,4640.1,0.7689]
[1756270426933,2.15512596,4640.1,4639.8,3.671]
[1756270427139,2.15516762,4640.1,4639.8,4.1454]
[1756270427356,2.15516762,4640.1,4640.0,0.2945]
[1756270427837,2.15516762,4640.1,4640.0,0.7689]
[1756270428462,3.0,4640.0,4639.8,3.671]
[1756270428667,3.0,4640.0,4639.8,0.021]
[1756270429563,2.15521886,4639.9,4639.8,0.021]
[1756270429865,2.25771886,4639.9,4639.8,0.021]
[1756270430368,2.15521886,4639.9,4639.8,0.021]
[1756270430953,2.25771886,4639.9,4639.8,0.021]
[1756270431678,2.27406216,4639.9,4639.8,0.021]
[1756270431990,22.54284108,4639.9,4639.8,0.021]
[1756270432285,15.98771886,4639.9,4639.8,0.021]
[1756270433341,15.99121886,4639.9,4639.8,0.021]
[1756270435462,16.43461886,4639.9,4639.8,0.021]
[1756270436054,15.99121886,4639.9,4639.8,0.021]
[1756270436373,16.09921886,4639.9,4639.8,0.021]
[1756270436942,12.34321886,4639.9,4639.8,0.7899]
[1756270437672,12.34321886,4639.9,4639.8,0.3155]
[1756270437875,16.09221886,4639.9,4639.8,0.021]
[1756270438989,12.34321886,4639.9,4639.8,0.021]
[1756270439184,16.29581886,4639.9,4639.8,0.021]
[1756270440463,16.54441886,4639.9,4639.8,0.021]
[1756270441392,17.20441886,4639.9,4639.8,0.021]
[1756270442200,8.91321886,4639.9,4639.8,0.021]
[1756270442697,9.01221886,4639.9,4639.8,0.021]
[1756270442994,10.12241886,4639.9,4639.8,0.021]
[1756270443693,2.81531176,4639.7,4639.6,1e-08]
[1756270443872,11.13865506,4639.7,4639.6,1e-08]
[1756270444072,11.67351176,4639.7,4639.6,1e-08]
[1756270444658,11.67351176,4639.7,4639.3,0.001]
[1756270444659,2.15540467,4639.5,4639.3,0.001]
[1756270444900,15.02177335,4639.4,4639.3,0.001]
[1756270445076,15.30753005,4639.4,4639.3,0.001]
[1756270445983,11.65753005,4639.4,4639.3,0.001]
[1756270446160,15.30753005,4639.4,4639.3,0.001]
[1756270446363,11.65753005,4639.4,4639.3,0.001]
[1756270446600,15.30753005,4639.4,4639.3,0.001]
[1756270446775,11.65753005,4639.4,4639.3,0.001]
[1756270447164,15.30753005,4639.4,4639.3,0.001]
[1756270448300,11.65753005,4639.4,4639.3,0.001]
[1756270448479,15.30753005,4639.4,4639.3,0.001]
[1756270452101,15.00543005,4639.4,4639.3,0.001]
[1756270452472,11.35543005,4639.4,4639.3,0.2871]
[1756270452673,5.26345113,4639.4,4639.3,0.7409]
[1756270452865,8.91345113,4639.4,4639.3,0.7409]
[1756270453510,5.26345113,4639.4,4639.3,0.7409]
[1756270453809,8.91345113,4639.4,4639.3,0.7409]
[1756270455701,5.26345113,4639.4,4639.3,0.7409]
[1756270456200,2.26345113,4639.4,4639.3,0.7409]
[1756270456404,5.26345113,4639.4,4639.3,0.7409]
[1756270457814,2.15545113,4639.4,4639.3,0.7409]
[1756270459011,2.17179443,4639.4,4639.3,0.2871]
[1756270459185,5.98031027,4639.4,4639.3,0.001]
[1756270459388,5.96396697,4639.4,4639.3,0.2871]
[1756270459592,5.96396697,4639.4,4639.3,0.7409]
[1756270460282,5.96396697,4639.4,4639.3,0.2871]
[1756270460511,5.96396697,4639.4,4639.3,0.001]
[1756270461217,9.61296697,4639.4,4639.3,0.001]
[1756270462722,5.96396697,4639.4,4639.3,0.2871]
[1756270463014,5.96396697,4639.4,4639.3,0.7409]
[1756270463228,9.61296697,4639.4,4639.3,0.2871]
[1756270463612,9.71196697,4639.4,4639.3,0.001]
[1756270464000,9.61296697,4639.4,4639.3,0.001]
[1756270464409,16.69296697,4639.4,4639.3,0.001]
[1756270465027,16.69296697,4639.4,4639.3,0.7409]
[1756270465420,7.08,4639.4,4639.3,0.7409]
[1756270465623,0.002,4640.1,4639.3,0.7409]
[1756270465806,2.15517598,4640.0,4639.4,0.4538]
[1756270465998,0.002,4640.1,4639.9,0.2861]
[1756270466600,0.002,4640.1,4640.0,0.4538]
[1756270467105,0.002,4640.1,4640.0,0.7399]
[1756270469915,2.15712596,4640.1,4640.0,0.7399]
[1756270471505,0.002,4640.1,4640.0,0.7399]
[1756270472907,2.15712596,4640.1,4640.0,0.7399]
[1756270475342,0.101,4640.1,4639.3,0.5432]
[1756270475548,0.108,4639.9,4639.3,0.109]
[1756270475773,0.108,4639.9,4639.8,0.3093]
[1756270475774,2.26321886,4639.9,4639.8,0.3093]
[1756270476166,0.108,4639.9,4639.8,0.7435]
[1756270476364,0.002,4640.1,4639.8,0.7435]
[1756270476668,0.002,4640.1,4639.9,0.4342]
[1756270477069,2.15712669,4640.1,4640.0,0.7435]
[1756270478153,2.15712669,4640.1,4640.0,0.3093]
[1756270479172,2.15535822,4639.6,4639.3,0.001]
[1756270479351,2.15545113,4639.4,4639.3,0.001]
[1756270479548,2.47085113,4639.4,4639.3,0.001]
[1756270481667,6.11785113,4639.4,4639.3,0.001]
[1756270481895,9.11785113,4639.4,4639.3,0.001]
[1756270483184,16.19785113,4639.4,4639.3,0.001]
[1756270483387,16.43385113,4639.4,4639.3,0.001]
[1756270483684,16.19785113,4639.4,4639.3,0.001]
[1756270488491,12.55085113,4639.4,4639.3,0.001]
[1756270489160,12.34345113,4639.4,4639.3,0.3103]
[1756270489360,15.99045113,4639.4,4639.3,0.3103]
[1756270489792,12.34345113,4639.4,4639.3,0.7445]
[1756270490406,12.34345113,4639.4,4639.3,0.3103]
[1756270491373,12.44245113,4639.4,4639.3,0.001]
[1756270491981,12.34345113,4639.4,4639.3,0.001]
[1756270492187,15.99045113,4639.4,4639.3,0.001]
[1756270492595,15.99245113,4639.4,4639.3,0.001]
[1756270493298,16.09145113,4639.4,4639.3,0.001]
[1756270493794,16.54165113,4639.4,4639.3,0.001]
[1756270495172,16.09145113,4639.4,4639.3,0.001]
[1756270495721,12.44445113,4639.4,4639.3,0.001]
[1756270495867,15.99245113,4639.4,4639.3,0.7445]
[1756270496294,15.99245113,4639.4,4639.3,0.3103]
[1756270496604,15.99245113,4639.4,4638.9,0.001]
[1756270496605,3.0,4639.3,4638.9,0.001]
[1756270496795,12.75532222,4639.2,4638.9,0.001]
[1756270497103,19.92147892,4639.2,4638.9,0.001]
[1756270497310,22.07702297,4639.2,4638.9,0.001]
[1756270497873,22.52382297,4639.2,4638.9,0.001]
[1756270498216,22.07702297,4639.2,4638.9,0.001]
[1756270498517,22.07702297,4639.2,4638.8,1e-08]
[1756270498518,5.81568345,4638.9,4638.8,1e-08]
[1756270498706,5.81568345,4638.9,4638.6,0.001]
[1756270498707,2.15584369,4638.6,4638.3,1e-08]
[1756270499019,9.30597892,4638.4,4638.3,1e-08]
[1756270499213,11.46189475,4638.4,4638.3,1e-08]
[1756270499417,18.54189475,4638.4,4638.3,1e-08]
[1756270500125,18.98529475,4638.4,4638.3,1e-08]
[1756270500623,18.54189475,4638.4,4638.3,1e-08]
[1756270501038,22.18889475,4638.4,4638.3,1e-08]
[1756270501720,22.63229475,4638.4,4638.3,1e-08]
[1756270501941,22.63229475,4638.4,4637.4,0.4724]
[1756270501942,3.66,4638.3,4636.6,0.4724]
[1756270502228,11.24849915,4637.1,4636.8,0.021]
[1756270502415,15.00349915,4637.1,4636.8,0.021]
[1756270504549,3.0,4637.0,4635.8,0.129]
[1756270504719,5.15693887,4636.2,4635.8,0.021]
[1756270504920,9.01443887,4636.2,4635.8,0.021]
[1756270507950,9.01793887,4636.2,4635.8,0.021]
[1756270509148,8.91293887,4636.2,4636.1,0.7662]
[1756270510117,8.91293887,4636.2,4636.1,0.2938]
[1756270510352,9.20443887,4636.2,4636.1,0.001]
[1756270510911,9.20443887,4636.2,4636.1,0.2938]
[1756270510912,8.91293887,4636.2,4636.1,0.2938]
[1756270511517,5.26493887,4636.2,4636.1,0.2938]
[1756270511718,8.91293887,4636.2,4636.1,0.2938]
[1756270512059,8.91293887,4636.2,4636.1,0.001]
[1756270512249,9.01193887,4636.2,4636.1,0.001]
[1756270515963,9.01193887,4636.2,4636.1,1e-08]
[1756270516361,2.15707845,4635.9,4635.8,1e-08]
[1756270516554,5.81717151,4635.7,4635.6,1e-08]
[1756270516735,9.56767151,4635.7,4635.6,1e-08]
[1756270516936,10.12247151,4635.7,4635.6,1e-08]
[1756270518753,9.67567151,4635.7,4635.6,1e-08]
[1756270519336,6.02767151,4635.7,4635.6,1e-08]
[1756270519555,9.67567151,4635.7,4635.6,1e-08]
[1756270519941,6.02767151,4635.7,4635.6,1e-08]
[1756270520161,9.67567151,4635.7,4635.6,1e-08]
[1756270521080,10.14907151,4635.7,4635.6,1e-08]
[1756270521738,6.50107151,4635.7,4635.6,1e-08]
[1756270521976,10.14907151,4635.7,4635.6,1e-08]
[1756270522347,6.39857151,4635.7,4635.6,1e-08]
[1756270522674,10.04657151,4635.7,4635.6,1e-08]
[1756270523387,10.15257151,4635.7,4635.6,1e-08]
[1756270525678,2.15740421,4635.2,4635.1,0.001]
[1756270525854,23.76072643,4635.2,4635.1,0.001]
[1756270526055,23.74438313,4635.2,4635.1,0.001]
[1756270526371,23.85368313,4635.2,4635.1,0.001]
[1756270526788,2.15754385,4634.9,4634.8,0.02]
[1756270527122,8.91354385,4634.9,4634.8,0.02]
[1756270527456,8.91354385,4634.9,4634.8,0.3299]
[1756270527691,8.91354385,4634.9,4634.8,0.8013]
[1756270529371,15.99354385,4634.9,4634.8,0.8013]
[1756270535497,15.99354385,4634.9,4634.8,0.3299]
[1756270536908,15.99354385,4634.9,4634.8,0.8013]
[1756270539210,15.99354385,4634.9,4634.8,0.02]
[1756270539515,16.10624385,4634.9,4634.8,0.02]
[1756270544993,9.02624385,4634.9,4634.8,0.02]
[1756270545780,9.02624385,4634.9,4634.8,0.021]
[1756270547091,8.91354385,4634.9,4634.8,0.021]
[1756270547716,9.50184385,4634.9,4634.8,0.021]
[1756270550641,11.24961587,4634.7,4634.6,0.001]
[1756270550837,14.89661587,4634.7,4634.6,0.001]
[1756270551043,11.36871587,4634.7,4634.6,0.001]
[1756270551241,15.01571587,4634.7,4634.6,0.001]
[1756270551429,15.48711587,4634.7,4634.6,0.001]
[1756270553844,15.36801587,4634.7,4634.6,0.001]
[1756270554041,11.72101587,4634.7,4634.6,0.001]
[1756270554340,15.36801587,4634.7,4634.6,0.001]
[1756270555033,15.36801587,4634.7,4634.6,0.3109]
[1756270555635,8.80463695,4634.7,4634.6,0.7823]
[1756270561058,8.80463695,4634.7,4634.6,0.3109]
[1756270561260,5.15763695,4634.7,4634.6,0.3109]
[1756270561451,8.80363695,4634.7,4634.6,0.3109]
[1756270562857,8.80363695,4634.7,4634.6,0.3161]
[1756270563057,8.80363695,4634.7,4634.6,0.7696]
[1756270563761,8.92703695,4634.7,4634.6,0.001]
[1756270564259,9.57586695,4634.7,4634.6,0.001]
[1756270565240,3.64883,4634.7,4634.6,0.3161]
[1756270565438,2.15759676,4634.8,4634.6,0.7696]
[1756270565658,0.108,4634.9,4634.6,0.7696]
[1756270565659,2.26555389,4634.9,4634.7,0.4535]
[1756270565981,2.1575904,4634.8,4634.7,0.4535]
[1756270566283,2.26555262,4634.9,4634.7,0.4535]
[1756270566573,0.108,4634.9,4634.8,0.3151]
[1756270566738,0.108,4634.9,4634.8,0.7686]
[1756270566940,0.002,4635.1,4634.8,0.7686]
[1756270567168,0.002,4635.1,4634.9,0.4535]
[1756270567372,0.002,4635.1,4635.0,0.12957497]
[1756270567555,0.002,4635.1,4635.0,0.44467497]
[1756270568076,0.002,4635.1,4635.0,0.89817497]
[1756270568283,0.002,4635.1,4635.0,0.8766]
[1756270568580,2.15945075,4635.1,4635.0,0.8766]
[1756270568881,0.002,4635.1,4635.0,0.7686]
[1756270569039,2.15945075,4635.1,4635.0,0.7686]
[1756270569238,0.002,4635.1,4635.0,0.7686]
[1756270570954,2.15945075,4635.1,4635.0,0.7686]
[1756270571154,2.95563364,4635.1,4635.0,0.3151]
[1756270571375,2.15945075,4635.1,4635.0,0.3151]
[1756270571571,2.15945075,4635.1,4635.0,0.7686]
[1756270574986,0.002,4635.1,4635.0,0.7686]
[1756270577358,2.15945075,4635.1,4635.0,0.7686]
[1756270578370,0.002,4635.1,4635.0,0.7686]
[1756270579093,2.15945075,4635.1,4635.0,0.7686]
[1756270579692,0.002,4635.1,4635.0,0.7686]
[1756270580590,0.002,4635.1,4635.0,3.47751489]
[1756270582165,0.002,4635.1,4635.0,3.56397889]
[1756270582879,0.002,4635.1,4635.0,4.24555386]
[1756270583972,0.002,4635.1,4635.0,4.22397889]